Cogmind - Beta 16 @@@ ROGUE MODE // 2026.02.02 @ 14:56:56 Player: Megaknight51 Result: Core destroyed Performance ------------- Evolutions (4) 2000 Regions Visited (11) 2200 Robots Destroyed (151) 755 Value Destroyed (4700) 4700 Prototype IDs (7) 140 Alien Tech Used (0) 0 Bonus (1264) 1264 TOTAL SCORE: 11059 Bonus ------- Follower Combat Kills 164 Entered DSFs 500 Met Imprinter 300 Was Imprinted 300 Cogmind --------- Core Integrity 0/850 Matter 89/300 Energy 125/160 System Corruption 0% Temperature Critical (1510) Movement Walking (190) Ox1 Location -6/DSF Parts ------- > --- POWER (1) -------- Light Fission Core > --- PROPULSION (4) --- Carbon-fiber Leg Flexi-carbon Leg > --- UTILITY (8) ------ High-capacity Storage Unit Advanced Visual Processing Unit Makeshift Light Armor Plating Makeshift Light Armor Plating Makeshift Hacking Suite System Shield > --- WEAPON (2) ------- Gauss Rifle Flak Cannon > --- INVENTORY (20) --- Advanced Sensor Array System Shield System Shield Authchip [R/NC] Authchip [R/Combat] Plasma Rifle Plasma Rifle Peak State ------------ > --- POWER ------------ Angular Momentum Engine > --- PROPULSION ------- Carbon-fiber Leg Makeshift Leg Flexi-carbon Leg Flexi-carbon Leg > --- UTILITY ---------- Advanced Visual Processing Unit Seismic Detector Makeshift Targeting Computer Target Analyzer Makeshift Light Armor Plating Makeshift Light Armor Plating Makeshift Hacking Suite System Shield > --- WEAPON ----------- Heavy Riot Gun Advanced Assault Cannon > --- INVENTORY -------- Improved Deuterium Engine Armored Treads Advanced Sensor Array Flak Cannon Flak Cannon [Rating: 55] Favorites ----------- Power Heavy Ion Engine Engine Heavy Ion Engine Power Core Light Nuclear Core Propulsion Light Treads Treads Light Treads Leg Makeshift Leg Utility Advanced Visual Processing Unit Device Improved Sensor Array Storage Huge Storage Unit Processor Advanced Visual Processing Unit Hackware Makeshift Hacking Suite Protection Improved Medium Armor Plating Weapon Heavy Assault Rifle Energy Gun Medium Laser Energy Cannon Heavy Particle Cannon Ballistic Gun Heavy Assault Rifle Ballistic Cannon Advanced Assault Cannon Launcher Rocket Launcher Build | -11 -10 -9 -9 -8 -7 -7 -7 -7 -6 -6 -6 ------- Run | Yrd Mat Mat Sto Mat Fac Low Low Zio Pro Fac DSF Slots Evolved 8 | . . 2 . 2 2 . . . . 2 . Power . | . . . . . . . . . . . . Propulsion 2 | . . 1 . . . . . . . 1 . Utility 6 | . . 1 . 2 2 . . . . 1 . Weapon . | . . . . . . . . . . . . Parts Attached 111 | 7 5 17 8 21 17 4 6 8 5 4 9 Power 14 | 1 1 3 1 . 3 1 . 1 . . 3 Engine 11 | 1 . 3 1 . 3 1 . . . . 2 Core 3 | . 1 . . . . . . 1 . . 1 Reactor . | . . . . . . . . . . . . Propulsion 34 | 2 . 7 3 7 5 . 2 1 3 2 2 Treads 28 | 2 . 7 3 7 5 . 2 . 2 . . Leg 6 | . . . . . . . . 1 1 2 2 Wheel . | . . . . . . . . . . . . Hover . | . . . . . . . . . . . . Flight . | . . . . . . . . . . . . Utility 35 | 2 2 2 1 9 5 3 2 5 2 1 1 Device 6 | 1 . . . 1 1 1 . 1 1 . . Storage 5 | 1 1 1 1 . . . . . . . 1 Processor 10 | . 1 1 . 4 1 1 . 2 . . . Hackware 2 | . . . . . . . . 1 . 1 . Protection 12 | . . . . 4 3 1 2 1 1 . . Artifact . | . . . . . . . . . . . . Weapon 28 | 2 2 5 3 5 4 . 2 1 . 1 3 Energy Gun 2 | 1 . . . . . . . . . 1 . Energy Cannon 2 | . . . . . 2 . . . . . . Ballistic Gun 14 | 1 1 5 1 5 . . . . . . 1 Ballistic Cannon 6 | . 1 . . . 2 . . 1 . . 2 Launcher 4 | . . . 2 . . . 2 . . . . Special Weapon . | . . . . . . . . . . . . Impact Weapon . | . . . . . . . . . . . . Slashing Weapon . | . . . . . . . . . . . . Piercing Weapon . | . . . . . . . . . . . . Special Melee Weapon . | . . . . . . . . . . . . Unidentified Prototypes 2 | . . . 1 . . . . 1 . . . Parts Lost 68 | . 2 10 1 16 13 . 15 . . . 11 Power 6 | . 1 1 . . 1 . 1 . . . 2 Propulsion 23 | . . 5 . 7 4 . 4 . . . 3 Utility 21 | . . 1 1 5 4 . 7 . . . 3 Weapon 18 | . 1 3 . 4 4 . 3 . . . 3 Highest Loss Streak 15 | . 1 2 1 4 3 . 15 . . . 6 To Critical Strikes . | . . . . . . . . . . . . Average Backups 14 | . 8 12 15 18 18 23 21 4 3 4 3 Power 3 | . 1 2 2 4 6 5 4 2 1 1 . Propulsion 1 | . . 2 3 3 1 2 1 . . 1 . Utility 6 | . 3 5 6 7 8 11 10 1 1 . 1 Weapon 2 | . 1 2 2 4 1 5 4 . . 1 . Tool/Special . | . . . . . . . . . . . . Unused Backups 43 | . 4 5 9 1 1 . 14 . 1 1 7 Power 12 | . 3 1 2 . 1 . 4 . 1 . . Propulsion 6 | . . . 5 . . . . . . 1 . Utility 18 | . . 2 2 1 . . 8 . . . 5 Weapon 7 | . 1 2 . . . . 2 . . . 2 Tool/Special . | . . . . . . . . . . . . Average Slot Usage (%) 89 | . 98 94 98 94 85 93 86 20 83 98 79 Engine 7 | . 5 10 11 9 6 7 6 . . . 2 Core 1 | . 7 . . . . . . 1 7 6 2 Treads 23 | . 28 30 32 24 22 23 19 . 3 7 . Leg 1 | . . . . . . . . 2 13 18 15 Device 2 | . . . . 4 5 6 6 . 4 6 2 Storage 11 | . 14 21 20 9 7 7 6 . . . 3 Processor 15 | . 13 8 11 19 21 14 13 11 23 20 11 Hackware 1 | . . . . . . . . 2 7 12 13 Protection 5 | . . . . 8 4 17 19 1 14 13 13 Ballistic Gun 11 | . 14 19 20 17 8 . . . . . 2 Ballistic Cannon 4 | . 5 2 . . 2 15 12 1 7 6 8 Peak Build Rating 55 | 7 10 15 20 30 40 47 47 28 42 52 55 Average Rating 25 | 5 8 13 19 25 34 43 40 10 38 50 41 On Entrance 23 | . 7 7 15 19 30 36 47 4 28 41 51 Avg Prop Armor Cover (%) 9 | . . . . . . . . . 8 13 . Naked Turns . | . . . . . . . . . . . . Heaviest Build 122 | 12 29 36 96 102 114 122 118 15 20 24 65 Greatest Support 75 | 40 40 60 69 69 71 68 68 20 48 70 75 Greatest Overweight (x) 4 | 1 . 1 1 4 2 1 4 . . . 3 Average Overweight (x) . | . . . . 1 1 1 . . . . . Largest Inventory Capacity 25 | 8 15 15 25 25 25 25 25 5 5 5 20 Average Capacity 17 | 7 10 15 15 25 25 25 22 5 5 5 12 Most Carried 25 | 2 11 15 16 22 25 25 25 5 5 5 7 Average Carried 14 | . 8 12 15 18 18 23 21 4 3 4 3 Final Capacity 25 | 8 15 15 25 25 25 25 5 5 5 5 20 Final Carried 25 | 2 11 15 16 18 25 24 5 3 5 5 7 Class Distribution -------------------- 51% | Mutant 21% | Scavenger-Mutant 13% | Scavenger-Skirmisher 10% | Derelict-Mutant Dominant Class ---------------- Mutant | -10/Materials Scavenger-Mutant | -9/Materials Mutant | -9/Storage Scavenger-Mutant | -8/Materials Scavenger-Skirmisher | -7/Factory Mutant | -7/Lower Caves Mutant | -7/Lower Caves Mutant | -7/Zion Derelict-Mutant | -6/Proximity Caves Derelict-Mutant | -6/Factory Hacker-Mutant | -6/DSF Resources | -11 -10 -9 -9 -8 -7 -7 -7 -7 -6 -6 -6 ----------- Run | Yrd Mat Mat Sto Mat Fac Low Low Zio Pro Fac DSF Matter Collected 4819 | 250 319 782 706 923 631 301 209 159 274 . 265 Remotely . | . . . . . . . . . . . . Salvage Created 5258 | 84 520 1344 899 1052 940 97 145 . . . 177 Parts 314 | 6 40 88 59 57 50 . 2 . . . 12 Haulers Intercepted 11 | . 2 2 3 1 3 . . . . . . Recyclers Shooed 9 | 1 . 5 3 . . . . . . . . Parts Field Recycled . | . . . . . . . . . . . . Retrieved Matter . | . . . . . . . . . . . . Parts Self-Destructed 11 | . . . . . . . 3 . 8 . . Prevented 4 | . . . . . . . 1 . 3 . . Parts Restored . | . . . . . . . . . . . . Kills | -11 -10 -9 -9 -8 -7 -7 -7 -7 -6 -6 -6 ------- Run | Yrd Mat Mat Sto Mat Fac Low Low Zio Pro Fac DSF Combat Hostiles Destroyed 115 | . 15 31 13 27 17 . 4 . . . 8 Melee 1 | . . . . 1 . . . . . . . Guns 80 | . 11 23 13 24 8 . . . . . 1 Cannons 26 | . 3 8 . . 5 . 3 . . . 7 AOE 6 | . . . . 2 3 . 1 . . . . Classes Destroyed 18 | 2 4 4 1 1 1 1 2 . . . 2 Worker 5 | . . 1 1 1 2 . . . . . . Builder 3 | . . 1 . . 2 . . . . . . Tunneler 2 | 1 . . 1 . . . . . . . . Hauler 11 | . 2 2 3 1 3 . . . . . . Recycler 6 | 1 . 2 2 . 1 . . . . . . Minesweeper 1 | . . . . . . . 1 . . . . Mechanic 1 | . . . 1 . . . . . . . . Operator 6 | . 1 2 1 2 . . . . . . . Swarmer 29 | . 8 9 2 7 3 . . . . . . Grunt 44 | . 7 12 6 12 5 . 2 . . . . Brawler 4 | . . 1 . 1 2 . . . . . . Duelist 1 | . . . . . . . 1 . . . . Sentry 23 | . . 9 6 5 2 . 1 . . . . Specialist 5 | . . . . 2 . . . . . . 3 Hunter 4 | . . . . . . . . . . . 4 Programmer 5 | . . . . . 5 . . . . . . Heavy 1 | . . . . . . . . . . . 1 Samaritan 3 | . . . . . . 3 . . . . . Best Kill Streak 6 | 2 3 6 4 4 6 . 2 . . . 3 Combat Bots Only 6 | . 3 6 2 4 4 . 2 . . . 3 Max Kills in Single Turn 2 | 1 2 2 1 2 2 1 1 . . . 1 Gunslinging . | . . . . . . . . . . . . Exploded 2 | . . . . 2 1 . 1 . . . . Melee 1 | . . . . 1 . . . . . . . Uniques/NPCs Destroyed . | . . . . . . . . . . . . Combat | -11 -10 -9 -9 -8 -7 -7 -7 -7 -6 -6 -6 -------- Run | Yrd Mat Mat Sto Mat Fac Low Low Zio Pro Fac DSF Hostile Shots Fired 1000 | . 66 162 35 195 230 . 163 . 13 . 136 Missed 283 | . 17 52 8 46 87 . 26 . 7 . 40 Hits 717 | . 49 110 27 149 143 . 137 . 6 . 96 Melee 23 | . . 3 . 2 5 . 13 . . . . Projectile 694 | . 49 107 27 147 138 . 124 . 6 . 96 AOE 1 | . . . . . 1 . . . . . . Critical Strikes 21 | . . 3 . 5 3 . 7 . . . 3 Damage Taken 11695 | . 599 1319 637 2320 1985 . 2459 . 38 . 2338 Core 2408 | . 142 163 163 395 188 . 443 . 24 . 890 Absorbed by Shields . | . . . . . . . . . . . . Ignored by Resistances 34 | . . . . . . . 34 . . . . Core Remaining (%) 39 | 100 43 . 18 28 . . . . 6 . . Volleys Fired 464 | 5 53 104 73 82 74 10 26 . 6 . 31 Largest 2 | 2 2 2 2 2 2 2 2 . 1 . 2 Hottest 150 | 70 70 50 66 56 150 80 80 . 40 . 100 Shots Fired 905 | 10 101 204 143 163 145 23 48 . 6 . 62 Gun 628 | 10 89 166 118 161 75 . . . . . 9 Cannon 237 | . 12 38 . . 59 23 46 . 6 . 53 Launcher 40 | . . . 25 2 11 . 2 . . . . Special . | . . . . . . . . . . . . Kinetic 781 | 5 65 204 118 161 93 23 46 . 6 . 60 Thermal 82 | 5 36 . . . 41 . . . . . . Explosive 40 | . . . 25 2 11 . 2 . . . . Electromagnetic 2 | . . . . . . . . . . . 2 Robot Hit Streak 23 | 5 14 21 8 23 16 3 7 . 4 . 11 Robot Miss Streak 7 | 1 6 5 7 3 5 1 3 . 1 . 6 Penetration Max 1 | . . . . . 1 . . . . . . Secondary Targets 5 | . 1 . . 3 1 . . . . . . Max Gunslinging Chain 1 | . 1 . . 1 1 . . . . . . Shots Hit Robots 611 | 9 63 152 67 127 96 11 28 . 5 . 53 Core Hits 290 | 5 30 61 28 54 40 5 16 . 1 . 50 Critical Kills 1 | . 1 . . . . . . . . . . Critical Parts Destroyed 1 | . 1 . . . . . . . . . . Critical Strikes 10 | . 5 . . 1 . 2 2 . . . . Burn 3 | . 3 . . . . . . . . . . Destroy 3 | . 2 . . 1 . . . . . . . Blast 4 | . . . . . . 2 2 . . . . Melee Attacks . | . . . . . . . . . . . . Impact . | . . . . . . . . . . . . Slashing . | . . . . . . . . . . . . Piercing . | . . . . . . . . . . . . Sneak Attacks . | . . . . . . . . . . . . Combat Hostiles . | . . . . . . . . . . . . Follow-up Attacks . | . . . . . . . . . . . . Damage Inflicted 12204 | 102 723 2242 1243 2540 2863 298 1064 . 139 . 990 Guns 7006 | 102 611 1686 1081 2264 1181 . . . . . 81 Cannons 3696 | . 112 535 . . 946 298 757 . 139 . 909 Explosions 1323 | . . . 110 237 669 . 307 . . . . Melee . | . . . . . . . . . . . . Ramming 179 | . . 21 52 39 67 . . . . . . Kinetic 9580 | 38 385 2221 1081 2264 1428 298 757 . 139 . 969 Thermal 1274 | 64 338 . . 26 846 . . . . . . Explosive 1150 | . . . 110 211 522 . 307 . . . . Electromagnetic 21 | . . . . . . . . . . . 21 Impact . | . . . . . . . . . . . . Slashing . | . . . . . . . . . . . . Piercing . | . . . . . . . . . . . . Highest Corruption 14 | . . 7 10 . 12 12 14 14 . . . Average Corruption 8 | . . 5 8 . 6 12 12 14 . . . Corruption Purged . | . . . . . . . . . . . . Corruption Blocked . | . . . . . . . . . . . . Effects 296 | . . 52 97 . 67 45 31 4 . . . Message Errors 61 | . . 9 22 . 18 7 5 . . . . Matter Fused 80 | . . 17 27 . 14 8 13 1 . . . Heat Flow Errors 31 | . . 9 7 . 6 7 1 1 . . . Energy Discharges 26 | . . 3 9 . 9 4 1 . . . . Parts Rejected 6 | . . 1 2 . 3 . . . . . . Parts Fused 2 | . . . . . 1 1 . . . . . Data Loss (minor) 35 | . . 6 12 . 4 8 4 1 . . . Data Loss (major) 21 | . . 5 3 . 7 4 1 1 . . . Misfires 16 | . . 2 6 . 2 3 3 . . . . Alerts 10 | . . . 4 . 1 3 2 . . . . Misdirections 1 | . . . 1 . . . . . . . . Weapon Failures 7 | . . . 4 . 2 . 1 . . . . Overload Shots . | . . . . . . . . . . . . Overflow Damage 305 | . . . 16 49 139 61 22 . 18 . . Projectiles 108 | . . . . . 12 61 17 . 18 . . Explosions 195 | . . . 14 49 127 . 5 . . . . Melee 2 | . . . 2 . . . . . . . . Knockbacks 37 | . . 3 1 1 3 . 5 . 2 . 22 Impact 3 | . . . 1 1 1 . . . . . . Kinetic 33 | . . 2 . . 2 . 5 . 2 . 22 Secondary 1 | . . 1 . . . . . . . . . Self-Inflicted Damage 453 | . . . 88 120 169 . 76 . . . . Shots 14 | . . . 5 3 4 . 2 . . . . Rammed 29 | . . 7 11 4 7 . . . . . . Targets Rammed 34 | . . 8 14 5 7 . . . . . . Kicked . | . . . . . . . . . . . . Crushed 5 | . . 1 3 1 . . . . . . . Highest Temperature 1510 | 60 367 249 254 149 529 269 593 123 18 . 1510 Average Temperature 138 | 28 95 57 109 32 171 81 210 72 9 . 517 Received Heat Transfer 3255 | . 225 414 132 900 441 . 1143 . . . . Effects 50 | . 1 . . . 9 . 13 . . . 27 Shutdowns 13 | . 1 . . . 3 . 4 . . . 5 Energy Bleed 4 | . . . . . 1 . . . . . 3 Interference 7 | . . . . . 1 . 4 . . . 2 Matter Decay 3 | . . . . . . . 1 . . . 2 Short Circuit 3 | . . . . . 3 . . . . . . Damage (minor) 6 | . . . . . 1 . 2 . . . 3 Damage (major) 8 | . . . . . . . 2 . . . 6 Damage (core) 6 | . . . . . . . . . . . 6 Siege Activations . | . . . . . . . . . . . . Martial Activations . | . . . . . . . . . . . . Shielding Activations . | . . . . . . . . . . . . Robots Disrupted . | . . . . . . . . . . . . Combat Hostiles . | . . . . . . . . . . . . Robots Corrupted 1 | . . . 1 . . . . . . . . Combat Hostiles . | . . . . . . . . . . . . Parts Fried 2 | . . . 2 . . . . . . . . Impact Corruptions 1 | . . . 1 . . . . . . . . Robots Melted 2 | . 1 . . . 1 . . . . . . Combat Hostiles 2 | . 1 . . . 1 . . . . . . Parts Melted 6 | 1 2 . . . 3 . . . . . . Heat Transferred 2468 | 185 1184 . . 50 1049 . . . . . . Parts Sabotaged . | . . . . . . . . . . . . Parts Stolen . | . . . . . . . . . . . . Parts Stripped . | . . . . . . . . . . . . Power Chain Reactions . | . . . . . . . . . . . . Alert | -11 -10 -9 -9 -8 -7 -7 -7 -7 -6 -6 -6 ------- Run | Yrd Mat Mat Sto Mat Fac Low Low Zio Pro Fac DSF Maximum Alert Level 1 | . . 1 . 1 1 . . . . . . Low Security (%) 89 | 100 100 94 100 59 84 . . . . 100 100 Level 1 10 | . . 5 . 40 15 . . . . . . Level 2 . | . . . . . . . . . . . . Level 3 . | . . . . . . . . . . . . Level 4 . | . . . . . . . . . . . . Level 5 . | . . . . . . . . . . . . High Security . | . . . . . . . . . . . . Max Security . | . . . . . . . . . . . . Sterilizations 1 | . . . . . . . . . . . 1 Peak Influence 325 | 10 166 213 131 325 252 . . . . . 90 Initial 137 | . . 37 83 28 137 . . . . . . Average 86 | . 63 139 32 144 79 . . . . . 61 Influence Increases 4128 | 10 465 922 712 927 649 . 160 . 83 . 200 Destroy 0b10 Robot/C 2420 | . 300 620 340 540 340 . 80 . 40 . 160 Destroy 0b10 Robot/NC 180 | 10 15 40 50 20 40 . 5 . . . . Destroy Leader 642 | . 74 174 128 112 104 . . . 10 . 40 Allied During Kill 77 | . . . 59 . . . . . 18 . . Successful Hack 81 | . 30 8 18 13 12 . . . . . . Disable Machine 210 | . . 15 45 45 105 . . . . . . Destroy Structure 128 | . 1 5 42 47 33 . . . . . . Partial Spotted 15 | . . . 15 . . . . . . . . Lose Combat Pursuer 375 | . 45 60 15 150 15 . 75 . 15 . . Influence Decreases 4038 | 10 377 811 843 693 702 249 101 59 83 . 110 Entered New Map 524 | . . 51 116 40 165 93 . 59 . . . Time Decay 2728 | 10 357 660 488 493 424 156 57 . 83 . . Lost Part 557 | . 20 100 10 160 113 . 44 . . . 110 Lost Ally 114 | . . . 114 . . . . . . . . Purge Threat 115 | . . . 115 . . . . . . . . Squads Dispatched 21 | . 3 3 2 3 7 . 1 . . . 2 Investigation 6 | . 3 1 1 . 1 . . . . . . Extermination 4 | . . . . . 4 . . . . . . Reinforcement 10 | . . 2 1 3 2 . . . . . 2 Assault 1 | . . . . . . . 1 . . . . Garrison . | . . . . . . . . . . . . Intercept . | . . . . . . . . . . . . Searches Triggered . | . . . . . . . . . . . . Construction Impeded 2 | . . . 1 . 1 . . . . . . Haulers Reinforced . | . . . . . . . . . . . . Active Scanning Responses . | . . . . . . . . . . . . Cargo Convoy Interrupts . | . . . . . . . . . . . . Stealth | -11 -10 -9 -9 -8 -7 -7 -7 -7 -6 -6 -6 --------- Run | Yrd Mat Mat Sto Mat Fac Low Low Zio Pro Fac DSF Distress Signals 16 | . 2 5 3 4 2 . . . . . . Communications Jammed . | . . . . . . . . . . . . Distress Signals . | . . . . . . . . . . . . Times Spotted 209 | . 29 50 28 51 30 . 11 . 2 . 8 Peak Tracking Total 9 | . 6 8 4 6 4 . 9 . 1 . 3 Tactical Retreats 16 | . 2 3 1 6 1 . 2 . 1 . . Traps | -11 -10 -9 -9 -8 -7 -7 -7 -7 -6 -6 -6 ------- Run | Yrd Mat Mat Sto Mat Fac Low Low Zio Pro Fac DSF Traps Triggered 10 | . 3 1 3 . 2 . 1 . . . . Indirectly . | . . . . . . . . . . . . Trap Hack Attempts . | . . . . . . . . . . . . Triggered . | . . . . . . . . . . . . Disarmed . | . . . . . . . . . . . . Reprogrammed . | . . . . . . . . . . . . Reused . | . . . . . . . . . . . . Traps Extracted . | . . . . . . . . . . . . Installed . | . . . . . . . . . . . . Triggered . | . . . . . . . . . . . . Machines | -11 -10 -9 -9 -8 -7 -7 -7 -7 -6 -6 -6 ---------- Run | Yrd Mat Mat Sto Mat Fac Low Low Zio Pro Fac DSF Machines Disabled 15 | . . 1 3 3 7 . 1 . . . . Max in Single Turn 2 | . . 1 1 2 2 . 1 . . . . Garrison Access 3 | . . . 1 1 1 . . . . . . Machines Repaired . | . . . . . . . . . . . . Machines Dismantled . | . . . . . . . . . . . . Machines Sabotaged . | . . . . . . . . . . . . Overloaded Fab Kills . | . . . . . . . . . . . . Hacking | -11 -10 -9 -9 -8 -7 -7 -7 -7 -6 -6 -6 --------- Run | Yrd Mat Mat Sto Mat Fac Low Low Zio Pro Fac DSF Machines Accessed 37 | . 5 7 12 7 4 1 . . . 1 . Terminals 30 | . 5 6 11 5 2 . . . . 1 . Fabricators . | . . . . . . . . . . . . Repair Stations . | . . . . . . . . . . . . Recycling Units . | . . . . . . . . . . . . Scanalyzers 3 | . . 1 . 1 1 . . . . . . Garrison Access 3 | . . . 1 1 1 . . . . . . Total Hacks 87 | . 18 17 25 17 7 1 . . . 2 . Successful 34 | . 9 4 7 9 3 1 . . . 1 . Failed 52 | . 9 12 18 8 4 . . . . 1 . Catastrophic 16 | . 2 2 8 2 2 . . . . . . Database Lockouts 1 | . . 1 . . . . . . . . . Manual 42 | . 11 12 12 7 . . . . . . . Terminals 77 | . 18 15 24 13 5 . . . . 2 . Fabricators . | . . . . . . . . . . . . Repair Stations . | . . . . . . . . . . . . Recycling Units . | . . . . . . . . . . . . Scanalyzers 5 | . . 2 . 2 1 . . . . . . Garrison Access 4 | . . . 1 2 1 . . . . . . Terminal Hacks 26 | . 9 2 6 5 2 1 . . . 1 . Robot Schematic 1 | . 1 . . . . . . . . . . Robot Analysis 7 | . 5 1 . 1 . . . . . . . Prototype ID Bank 3 | . 1 . . 2 . . . . . . . Open Door 4 | . . . 3 . . 1 . . . . . Open DSF 2 | . . . . . 1 . . . . 1 . Level Access Points 1 | . . . . 1 . . . . . . . Branch Access Points 2 | . . . 1 . 1 . . . . . . Terminal Index 2 | . 1 1 . . . . . . . . . Unreport Threat 2 | . . . 2 . . . . . . . . Hauler Manifests 2 | . 1 . . 1 . . . . . . . Fabricator Hacks . | . . . . . . . . . . . . Repair Station Hacks . | . . . . . . . . . . . . Recycling Unit Hacks . | . . . . . . . . . . . . Scanalyzer 4 | . . 2 . 2 . . . . . . . Insert Component 1 | . . . . 1 . . . . . . . Analyze 1 | . . . . 1 . . . . . . . Retrieve Study 2 | . . 2 . . . . . . . . . Garrison Access Hacks 4 | . . . 1 2 1 . . . . . . Seal Access 3 | . . . 1 1 1 . . . . . . Coupler Status 1 | . . . . 1 . . . . . . . Unauthorized Hacks . | . . . . . . . . . . . . Terminals . | . . . . . . . . . . . . Fabricators . | . . . . . . . . . . . . Repair Stations . | . . . . . . . . . . . . Recycling Units . | . . . . . . . . . . . . Scanalyzers . | . . . . . . . . . . . . Garrison Access . | . . . . . . . . . . . . Data Cores Recovered 2 | . 1 . 1 . . . . . . . . Used . | . . . . . . . . . . . . Hacking Detections 33 | . 5 8 10 7 3 . . . . . . Full Trace Events 5 | . 1 1 2 . 1 . . . . . . Feedback Events . | . . . . . . . . . . . . Feedback Blocked . | . . . . . . . . . . . . Robot Schematics Acquired 1 | . 1 . . . . . . . . . . Robots Built . | . . . . . . . . . . . . Authchips . | . . . . . . . . . . . . Time . | . . . . . . . . . . . . Total Robot Build Rating . | . . . . . . . . . . . . Part Schematics Acquired 1 | . . . . 1 . . . . . . . Parts Built . | . . . . . . . . . . . . Authchips . | . . . . . . . . . . . . Time . | . . . . . . . . . . . . Total Part Build Rating . | . . . . . . . . . . . . Part Studies Acquired 2 | . . 2 . . . . . . . . . Parts Repaired . | . . . . . . . . . . . . Time . | . . . . . . . . . . . . Parts Recycled . | . . . . . . . . . . . . Recycled Matter . | . . . . . . . . . . . . Retrieved Matter . | . . . . . . . . . . . . Retrieved Components . | . . . . . . . . . . . . Parts Scanalyzed 1 | . . . . 1 . . . . . . . Part Schematics Acquired 1 | . . . . 1 . . . . . . . Parts Damaged . | . . . . . . . . . . . . Bothacking | -11 -10 -9 -9 -8 -7 -7 -7 -7 -6 -6 -6 ------------ Run | Yrd Mat Mat Sto Mat Fac Low Low Zio Pro Fac DSF Used RIF Installer . | . . . . . . . . . . . . Robots Hacked . | . . . . . . . . . . . . Non-combat . | . . . . . . . . . . . . Combat . | . . . . . . . . . . . . Robot Hacks Applied . | . . . . . . . . . . . . Relay Couplers Released . | . . . . . . . . . . . . Fabnet Peak Effective % . | . . . . . . . . . . . . Robots Rewired . | . . . . . . . . . . . . Allies Hacked . | . . . . . . . . . . . . Hacks Repelled . | . . . . . . . . . . . . Allies | -11 -10 -9 -9 -8 -7 -7 -7 -7 -6 -6 -6 -------- Run | Yrd Mat Mat Sto Mat Fac Low Low Zio Pro Fac DSF Total Allies 15 | . . . 10 . . . 1 4 . . . Largest Group 10 | . . . 10 . . . 1 4 4 . . Highest-Rated Group 152 | . . . 88 . . . 138 152 152 . . Highest-Rated Ally 138 | . . . 16 . . . 138 40 40 . . Total Orders 1 | . . . 1 . . . . . . . . GUARD 1 | . . . 1 . . . . . . . . Ally Attacks 59 | . . . 38 . . . . . 21 . . Total Damage 630 | . . . 310 . . . . . 320 . . Kills 7 | . . . 5 . . . . . 2 . . Allies Corrupted . | . . . . . . . . . . . . Allies Melted . | . . . . . . . . . . . . Intel | -11 -10 -9 -9 -8 -7 -7 -7 -7 -6 -6 -6 ------- Run | Yrd Mat Mat Sto Mat Fac Low Low Zio Pro Fac DSF Active Infowar (turns) 11685 | 12 18 1665 2521 1682 2917 1159 548 . 788 177 198 Optics 10492 | . . 1665 2521 1682 2917 1159 548 . . . . Sensors 2239 | . . . . . 2239 . . . . . . Terrain 1646 | . . . . . . 1098 548 . . . . Structural 871 | . . . . 871 . . . . . . . Seismic 1193 | 12 18 . . . . . . . 788 177 198 Machine Analysis 2862 | . . . . 1681 1181 . . . . . . Robot Analysis Total 7 | . 5 1 . 1 . . . . . . . Derelict Logs Recovered 5 | . . . . . . . 1 2 2 . . Drone Launches . | . . . . . . . . . . . . Drone Recoveries . | . . . . . . . . . . . . Exploration | -11 -10 -9 -9 -8 -7 -7 -7 -7 -6 -6 -6 ------------- Run | Yrd Mat Mat Sto Mat Fac Low Low Zio Pro Fac DSF Turns Passed 15475 | 132 1538 2496 2521 1682 2917 1159 678 567 1141 177 467 Spaces Moved 7725 | 69 769 1232 1284 550 1142 528 370 871 573 131 206 Core 905 | 4 . . . . . . 128 773 . . . Treads 5896 | 65 769 1232 1284 550 1142 528 242 . 84 . . Legs 924 | . . . . . . . . 98 489 131 206 Wheels . | . . . . . . . . . . . . Hover . | . . . . . . . . . . . . Flight . | . . . . . . . . . . . . Fastest Speed 50 | 50 160 160 160 200 213 213 50 50 130 125 120 Average Speed 165 | 155 160 160 165 239 219 213 158 60 136 127 172 Slowest Speed 480 | 160 160 200 240 480 280 213 320 140 165 130 330 Overloaded Moves . | . . . . . . . . . . . . Propulsion Burnouts . | . . . . . . . . . . . . Robots Hopped . | . . . . . . . . . . . . Potential Cave-ins 17 | . . . 17 . . . . . . . . Cave-ins Triggered . | . . . . . . . . . . . . Exploration Rate (%) 58 | 5 93 85 90 38 35 65 52 84 71 3 82 Regions Visited 11 Branch Regions 5 Pre-discovered Areas . | . . . . . . . . . . . . Known Exits Taken 3 | . . . . 1 1 . . . . 1 . Unknown Exits Taken 8 | 1 1 1 1 . . 1 1 1 1 . . Scrap Searched 9 | . . . . . . 2 1 3 3 . . Spaces Dug 37 | . . . 35 . . 2 . . . . . Terrain Destroyed 200 | . . . 86 58 35 5 16 . . . . Melee . | . . . . . . . . . . . . Projectile 16 | . . . . . 3 5 8 . . . . AOE 184 | . . . 86 58 32 . 8 . . . . Terrain Rammed . | . . . . . . . . . . . . Walls Destroyed . | . . . . . . . . . . . . Machines Disabled . | . . . . . . . . . . . . Actions | -11 -10 -9 -9 -8 -7 -7 -7 -7 -6 -6 -6 --------- Run | Yrd Mat Mat Sto Mat Fac Low Low Zio Pro Fac DSF Total 9523 | 82 991 1564 1543 755 1399 542 414 912 923 140 258 Wait 1026 | . 146 171 133 75 127 . 10 31 333 . . Move 7714 | 68 768 1231 1283 549 1141 527 369 870 572 130 206 Hop . | . . . . . . . . . . . . Pick Up 98 | 2 12 20 13 18 17 1 1 . 3 4 7 Fast Attach 42 | 7 2 4 2 3 9 1 . 6 4 . 4 Attach 56 | . . 10 1 16 11 2 6 2 1 3 4 Detach 8 | . 1 . 1 . 5 . . . 1 . . Swap 31 | . 3 6 8 5 2 1 . . 2 2 2 Drop 45 | . 6 10 15 2 4 . 2 1 1 1 3 Fire 464 | 5 53 104 73 82 74 10 26 . 6 . 31 Melee . | . . . . . . . . . . . . Ram . | . . . . . . . . . . . . Kick . | . . . . . . . . . . . . Crush 34 | . . 8 14 5 7 . . . . . . Escape Stasis 2 | . . . . . 2 . . . . . . Rewire 3 | . . . . . . . . 2 . . 1 Trap . | . . . . . . . . . . . . Miscellaneous . | . . . . . . . . . . . . Route ------- -11/Scrapyard -10/Materials (discovered 3 exits: *Mat x3) -9/Materials (discovered 6 exits: *Mat x3 / [*Min] / *Sto x2) -9/Storage (discovered 2 exits: *Mat / Rec) -8/Materials (discovered 3 exits: *Fac x3) -7/Factory (discovered 2 exits: *Low x2) -7/Lower Caves -7/Lower Caves -7/Zion -6/Proximity Caves -6/Factory (discovered 2 exits: [*Low] / DSF) -6/DSF (discovered 1 exit: [*Fac]) History --------- Turn | Location | Event 14 | -11/Scrapyard | Discovered new exit (range 16) 133 | -11/Scrapyard | Entered Materials 309 | -10/Materials | Build established: Mutant 505 | -10/Materials | Discovered new exit (range 15) 860 | -10/Materials | Discovered new exit (range 15) 1183 | -10/Materials | Discovered new exit (range 15) 1598 | -10/Materials | Core integrity fell below 50% 1671 | -10/Materials | Entered another Materials area 1671 | -9/Materials | Evolved 2 slots: Propulsion x1, Utility x1 2052 | -9/Materials | Discovered new exit (range 12) 2332 | -9/Materials | Build established: Scavenger-Mutant 2641 | -9/Materials | Discovered new exit (range 17) 2822 | -9/Materials | Central database locked down 2964 | -9/Materials | Discovered new exit (range 6) 3300 | -9/Materials | Discovered new exit (range 7) 3374 | -9/Materials | Discovered new exit (range 11) 3894 | -9/Materials | Discovered new exit (range 5) 4167 | -9/Materials | Entered Storage 4475 | -9/Storage | Core integrity fell below 50% 4517 | -9/Storage | Build established: Mutant 4944 | -9/Storage | Discovered new exit (range 15) 5270 | -9/Storage | Assisted by bots powering up and referring to "LRC-V3" 5271 | -9/Storage | Identified exit to Recycling 5499 | -9/Storage | Lost 4 allies 5512 | -9/Storage | Core integrity fell below 20% 5512 | -9/Storage | System corruption reached 10% 5542 | -9/Storage | Lost 3 allies 6688 | -9/Storage | Entered Materials 6688 | -8/Materials | Evolved 2 slots: Utility x2 7309 | -8/Materials | Discovered new exit (range 20) 7371 | -8/Materials | Lost 3 parts (2n1u) 7482 | -8/Materials | Lost 3 parts (1n1u1w) 7628 | -8/Materials | Build established: Scavenger-Mutant 7695 | -8/Materials | Identified exit to Factory 7758 | -8/Materials | Lost 3 parts (1n2w) 8276 | -8/Materials | Core integrity fell below 50% 8312 | -8/Materials | Lost 4 parts (1n2u1w) 8370 | -8/Materials | Entered Factory 8370 | -7/Factory | Evolved 2 slots: Utility x2 8686 | -7/Factory | Build established: Scavenger-Skirmisher 9372 | -7/Factory | Identified exit to Lower Caves 9944 | -7/Factory | Lost 3 parts (1n2w) 10271 | -7/Factory | System corruption reached 10% 10837 | -7/Factory | Build established: Mutant 11287 | -7/Factory | Entered Lower Caves 12367 | -7/Lower Caves | Discovered new exit (range 20) 12446 | -7/Lower Caves | Entered another Lower Caves area 12743 | -7/Lower Caves | Learned Factory emergency access door positions 12952 | -7/Lower Caves | Attracted the attention of an 0b10 outpost 13015 | -7/Lower Caves | Core integrity fell below 50% 13054 | -7/Lower Caves | Core integrity fell below 20% 13062 | -7/Lower Caves | Attracted the attention of an 0b10 checkpoint 13081 | -7/Lower Caves | Lost 15 parts (1p4n7u3w) 13089 | -7/Lower Caves | Discovered new exit (range 9) 13092 | -7/Lower Caves | Encountered a Warlord checkpoint 13124 | -7/Lower Caves | Entered Zion 13154 | -7/Zion | Discovered new exit (range 7) 13250 | -7/Zion | System corruption cleaned by Quarantine Array 13261 | -7/Zion | Learned Factory trap positions 13279 | -7/Zion | Learned Factory terminal intel 13389 | -7/Zion | Met Imprinter 13397 | -7/Zion | Imprinted 13399 | -7/Zion | Declared Zion's savior 13456 | -7/Zion | Found Prototype Device 13456 | -7/Zion | Identified Bomb Factory No. 2 13479 | -7/Zion | Given A8's code to call for help 13691 | -7/Zion | Entered Proximity Caves 13691 | -6/Proximity Caves | Accompanied by 4 allies 13837 | -6/Proximity Caves | Build established: Derelict-Mutant 13945 | -6/Proximity Caves | Learned Factory garrison access intel 14208 | -6/Proximity Caves | Received a Behemoth hack from an annoying Tinkerer 14350 | -6/Proximity Caves | Learned Factory emergency access door positions 14492 | -6/Proximity Caves | Spotted B-75 Beast 14826 | -6/Proximity Caves | Discovered new exit (range 7) 14832 | -6/Proximity Caves | Entered Factory 14832 | -6/Factory | Evolved 2 slots: Propulsion x1, Utility x1 14833 | -6/Factory | Loaded intel: 70 trap records 14835 | -6/Factory | Loaded intel: 28 terminal locations 14836 | -6/Factory | Loaded intel: 4 garrison access locations 14981 | -6/Factory | Discovered new exit (range 10) 15008 | -6/Factory | Identified exit to DSF 15009 | -6/Factory | Entered DSF 15105 | -6/DSF | Additional patrols routed to DSF 15162 | -6/DSF | Lost 3 parts (1p1u1w) 15166 | -6/DSF | Discovered new exit (range 14) 15238 | -6/DSF | Lost 6 parts (1p3n1u1w) 15352 | -6/DSF | Sterilization system engaged 15372 | -6/DSF | Ambient heat levels rising (+10) 15387 | -6/DSF | Ambient heat levels rising (+10) 15402 | -6/DSF | Ambient heat levels rising (+10) 15417 | -6/DSF | Ambient heat levels rising (+10) 15432 | -6/DSF | Ambient heat levels rising (+10) 15447 | -6/DSF | Ambient heat levels rising (+10) 15458 | -6/DSF | Core integrity fell below 50% 15462 | -6/DSF | Ambient heat levels rising (+10) 15462 | -6/DSF | Core integrity fell below 20% 15477 | -6/DSF | Core destroyed Last Messages --------------- 15467_ A-15 Conveyor heat damages Unknown Engine, Med. Treads, Transport Network Coupler, Lrg. Storage Unit. 15468_ A-15 Conveyor heat damages Med. Treads, Med. Treads, Lrg. Storage Unit, Adv. Weight Redist. System. 15468_ A-15 Conveyor heat spikes uncontrollably. 15469_ Overheating: System interference. 15469_ Gauss Rifle temporarily disabled. 15469_ A-15 Conveyor heat spikes uncontrollably. 15470_ A-15 Conveyor heat damages Adv. Weight Redist. System. 15471_ Overheating: Mak. Light Armor Plating damaged (-52). 15471_ Overheating: Gauss Rifle damaged (-49). 15471_ A-15 Conveyor heat damages Med. Treads, Med. Treads. 15472_ A-15 Conveyor heat damages Unknown Engine. 15473_ Power failure, Lgt. Fission Core shutdown. 15474_ A-15 Conveyor heat damages Med. Treads. 15474_ A-15 Conveyor heat damages Unknown Engine, Med. Treads, Lrg. Storage Unit. 15475_ Overheating: Flexi-carbon Leg damaged (-46). 15476_ Overheating: Energy bleed (-35). 15477_ Overheating: Core damaged (-93). Map ----- +----------------------------------------------------+ | | | | | | | | | | | | | | | | | | | | | | | | | | | | | | | ?????????????????????????????????????????????? | | ?????????????????????????????????????????????? | | ?????????????????????????????????????????????? | | ?????????????????????????????????????????????? | | ?????????????????????????????????????????????? | | ?????????????????????????????????????????????? | | ????????????????????#########????????????????? | | ???????"""???######## //#????????????????? | | ??????#"""""##!!#!!!# //#????????????????? | | ??????#""<% % #????????????????? | | ??????""" @ #????????????????? | | ??????#"" ## # !!##; ###????????????????? | | ??????### ???# #!!!### ###????????????????? | | ?????????????########!! #????????????????? | | ????????????????????#!! #????????????????? | | ????????????????????#!!! #????????????????? | | ????????????????????### [ ###????????????????? | | ????????????????????#!! ! #????????????????? | | ????????????????????#!! !!#????????????????? | | ????????????????????#!! !!#????????????????? | | ????????????????###?### #################??? | | ????????????# ??#!!!?## ###!!!#!!!## !!#??? | | ????????? ## #!!!## % ##!!!#!!!## !!#??? | | ???????? ^ % [ % ##?? | | ???????? ^ % % % "#?? | | ???????? = % #??? | | ????????? ##!!!#!!!## "#!!!"!!!## !!#??? | | ????????????#!??#!!!?## ###!!!"!!!"# !!#??? | | ????????????????###?### ############ ###??? | | ????????????????????#!! [[#??????#== #???? | | ????????????????????#!! [[#??????#== #???? | | ????????????????????# ! [[#??????#== #???? | | ????????????????????### ###??????### ##???? | | ????????????????????#[[ #??????#== =#???? | | ????????????????????#[ #??????#== =#???? | +----------------------------------------------------+ Best States ------------- Heat Dissipation 37 Energy Generation 18 Energy Capacity 300 Matter Stores 450 Matter Capacity 450 Sight Range 20 Robot Scan Range 15 Terrain Scan Range 16 Terrain Scan Density 10 Armor Coverage 675 Resistance: TH 10 Evasion (%) 55 Targeting Accuracy 10 Target Analysis 5 Armor Integrity Analysis 30 Recoil Reduction 3 Offensive Hacking 11 Defensive Hacking 10 Authchip Count 2 Item Schematics ----------------- Hacking Suite | -8/Materials | Scanalyzed Robot Schematics ------------------ O-16 Technician | -10/Materials | Hacked Fabricated ------------ Nothing Repaired ---------- Nothing Studied --------- Hvy. Assault Rifle | -9/Materials | Hacked Lgt. Treads | -9/Materials | Hacked Alien Tech Used ----------------- None Achievements -------------- Hot Goods Challenges ------------ None Game ------ Seed BattlePrecisionRailcannon Manual? 0 Play Time 01:29:43 Cumulative 42.4 hours Start 2026.02.02 @ 13:11:16 End 2026.02.02 @ 14:56:56 Sessions 1 Manual Loads 0 Difficulty Rogue Special Mode None Game No. 85 Rogue 85 Adventurer 0 Explorer 0 Win Type - Total 0 Types 0/0/0/0/0/0/0/0/0/0 Lore% 19 Gallery% 26 Achievement% 22 Wizard Run 0 Options --------- Layout 0 ASCII 0 Keyboard 1 Movement Arrows Keybinds 0 Fullscreen 1 Font 18/Smallcaps Map View 38x25 Zoom Use 86% Tactical HUD 1 Map Filters NONE Filters NONE Steam 1 RUN: 328118f2-b170-46ff-bc3d-ebcd0d2b85ba